Cogmind - Beta 16 @@@ ROGUE MODE // 2026.01.18 @ 15:51:06 Player: K0T Result: Destroyed by C-40 Crusher with Compactor Performance ------------- Evolutions (3) 1500 Regions Visited (5) 1000 Robots Destroyed (83) 415 Value Destroyed (2303) 2303 Prototype IDs (2) 40 Alien Tech Used (0) 0 Bonus (0) 0 TOTAL SCORE: 5258 Bonus ------- None Cogmind --------- Core Integrity 0/700 Matter 237/300 Energy 55/100 System Corruption 26% Temperature Cool (0) Movement Core (50) Location -7/Waste Parts ------- > --- POWER (1) -------- (None) > --- PROPULSION (3) --- (None) > --- UTILITY (7) ------ (None) > --- WEAPON (2) ------- (None) > --- INVENTORY (5) ---- Light Ion Engine Weight Redist. System Recalibrator Peak State ------------ > --- POWER ------------ Nuclear Core > --- PROPULSION ------- Improved Treads Improved Treads Advanced Treads > --- UTILITY ---------- High-capacity Storage Unit Improved Targeting Computer Advanced Targeting Computer Hacking Suite Hacking Suite Hacking Suite System Shield > --- WEAPON ----------- Heavy Ion Cannon Datajack > --- INVENTORY -------- Light Ion Engine Micro Nuclear Core Light Treads Improved Treads Improved Treads Improved Treads Improved Treads Improved Treads Improved Treads Weight Redist. System Structural Scanner Machine Analyzer Corruption Screen Recalibrator Arc Projector Precision Shock Rifle Gauss Rifle Missile Launcher Plasma Cutter [Rating: 38] Favorites ----------- Power Light Ion Engine Engine Light Ion Engine Power Core Nuclear Core Propulsion Light Treads Treads Light Treads Leg Aluminum Leg Utility Hacking Suite Device Structural Scanner Storage High-capacity Storage Unit Processor Improved Targeting Computer Hackware Hacking Suite Weapon Assault Rifle Energy Gun Beam Rifle Energy Cannon Beam Cannon Ballistic Gun Assault Rifle Launcher Missile Launcher Special Weapon Remote Datajack Special Melee Weapon Datajack Build | -11 -10 -9 -8 -7 -7 ------- Run | Yrd Mat Mat Mat Fac Was Slots Evolved 6 | . . 2 2 2 . Power . | . . . . . . Propulsion 1 | . . . 1 . . Utility 5 | . . 2 1 2 . Weapon . | . . . . . . Parts Attached 66 | 6 11 15 18 8 8 Power 11 | 1 2 3 4 . 1 Engine 5 | 1 1 2 1 . . Core 6 | . 1 1 3 . 1 Reactor . | . . . . . . Propulsion 26 | 2 5 5 7 2 5 Treads 21 | . 2 5 7 2 5 Leg 5 | 2 3 . . . . Wheel . | . . . . . . Hover . | . . . . . . Flight . | . . . . . . Utility 15 | 1 3 3 4 3 1 Device 2 | . 1 1 . . . Storage 4 | 1 2 1 . . . Processor 4 | . . 1 1 1 1 Hackware 5 | . . . 3 2 . Protection . | . . . . . . Artifact . | . . . . . . Weapon 14 | 2 1 4 3 3 1 Energy Gun 4 | 1 . 2 1 . . Energy Cannon 5 | . 1 1 2 1 . Ballistic Gun 2 | 1 . 1 . . . Ballistic Cannon . | . . . . . . Launcher 1 | . . . . . 1 Special Weapon 1 | . . . . 1 . Impact Weapon . | . . . . . . Slashing Weapon . | . . . . . . Piercing Weapon . | . . . . . . Special Melee Weapon 1 | . . . . 1 . Unidentified Prototypes . | . . . . . . Parts Lost 25 | . 2 9 2 1 11 Power 4 | . . 3 1 . . Propulsion 10 | . 2 2 . 1 5 Utility 5 | . . . . . 5 Weapon 6 | . . 4 1 . 1 Highest Loss Streak 7 | . 1 2 2 1 7 To Critical Strikes . | . . . . . . Average Backups 14 | 1 6 13 19 19 13 Power 1 | . 1 . 1 1 1 Propulsion 5 | 1 2 5 8 7 4 Utility 3 | . 1 2 5 5 4 Weapon 2 | . . 2 2 4 2 Tool/Special . | . . . . . . Unused Backups 13 | . . . 4 1 8 Power 1 | . . . 1 . . Propulsion 1 | . . . 1 . . Utility 4 | . . . 1 . 3 Weapon 6 | . . . 1 1 4 Tool/Special 1 | . . . . . 1 Average Slot Usage (%) 95 | . 96 97 97 95 61 Engine 3 | . 3 6 1 . . Core 6 | . 10 3 7 7 3 Treads 20 | . 10 21 27 18 7 Leg 2 | . 15 . . . . Device 12 | . 11 22 4 . . Storage 10 | . 14 11 9 7 3 Processor 8 | . . 9 9 14 10 Hackware 10 | . . . 22 29 26 Energy Gun 5 | . 9 3 8 . . Energy Cannon 7 | . 4 9 7 7 3 Ballistic Gun 5 | . 14 8 . . . Peak Build Rating 38 | 6 10 14 33 38 38 Average Rating 19 | 4 8 12 28 37 25 On Entrance 16 | . 6 10 14 30 38 Avg Prop Armor Cover (%) 9 | . . . 9 . . Naked Turns 18 | . . . . . 18 Heaviest Build 58 | 11 31 50 58 58 58 Greatest Support 74 | 20 40 46 74 68 46 Greatest Overweight (x) 6 | . 6 1 1 1 3 Average Overweight (x) . | . . . . . . Largest Inventory Capacity 20 | 8 15 20 20 20 20 Average Capacity 17 | 6 10 17 20 20 12 Most Carried 20 | 3 11 15 20 20 20 Average Carried 14 | 1 6 13 19 19 12 Final Capacity 20 | 8 15 20 20 20 5 Final Carried 20 | 3 11 15 20 20 3 Class Distribution -------------------- 51% | Mutant 35% | Hacker-Mutant 12% | Scavenger-Mutant Dominant Class ---------------- Mutant | -10/Materials Mutant | -9/Materials Hacker-Mutant | -8/Materials Hacker-Mutant | -7/Factory Hacker-Mutant | -7/Waste Resources | -11 -10 -9 -8 -7 -7 ----------- Run | Yrd Mat Mat Mat Fac Was Matter Collected 1174 | 170 331 398 180 42 53 Remotely . | . . . . . . Salvage Created 3079 | . 499 1671 758 151 . Parts 177 | . 38 92 37 10 . Haulers Intercepted 7 | . 2 4 1 . . Recyclers Shooed 4 | . 2 2 . . . Parts Field Recycled . | . . . . . . Retrieved Matter . | . . . . . . Parts Self-Destructed . | . . . . . . Prevented . | . . . . . . Parts Restored . | . . . . . . Kills | -11 -10 -9 -8 -7 -7 ------- Run | Yrd Mat Mat Mat Fac Was Combat Hostiles Destroyed 67 | . 12 35 17 3 . Melee 1 | . . . 1 . . Guns 32 | . 11 16 5 . . Cannons 33 | . 1 19 10 3 . Classes Destroyed 12 | . 6 3 2 1 . Worker 2 | . . 2 . . . Tunneler 1 | . 1 . . . . Hauler 7 | . 2 4 1 . . Recycler 1 | . . 1 . . . Mechanic 1 | . 1 . . . . Operator 4 | . 1 2 . 1 . Swarmer 21 | . 6 11 4 . . Grunt 24 | . 6 14 2 2 . Duelist 1 | . . . 1 . . Sentry 17 | . . 10 7 . . Hunter 3 | . . . 3 . . Programmer 1 | . . . . 1 . Best Kill Streak 6 | . 3 6 4 2 . Combat Bots Only 5 | . 3 5 4 2 . Max Kills in Single Turn 2 | . 1 2 2 1 . Gunslinging . | . . . . . . Exploded . | . . . . . . Melee 1 | . . . 1 . . Uniques/NPCs Destroyed . | . . . . . . Combat | -11 -10 -9 -8 -7 -7 -------- Run | Yrd Mat Mat Mat Fac Was Hostile Shots Fired 372 | . 62 181 96 15 18 Missed 93 | . 15 54 17 6 1 Hits 279 | . 47 127 79 9 17 Melee 17 | . . . . . 17 Projectile 262 | . 47 127 79 9 . Critical Strikes 12 | . . 3 2 . 7 Damage Taken 3958 | . 514 1514 1049 138 743 Core 1306 | . 130 317 158 33 668 Absorbed by Shields . | . . . . . . Core Remaining (%) 59 | 100 48 20 71 . . Volleys Fired 244 | . 47 113 51 20 13 Largest 2 | . 2 2 2 1 1 Hottest 125 | . 80 121 125 65 65 Shots Fired 441 | . 93 216 99 20 13 Gun 249 | . 89 107 53 . . Cannon 182 | . 4 109 46 15 8 Launcher . | . . . . . . Special 10 | . . . . 5 5 Kinetic 144 | . 47 97 . . . Thermal 287 | . 46 119 99 15 8 Explosive . | . . . . . . Electromagnetic . | . . . . . . Robot Hit Streak 21 | . 8 13 21 8 11 Robot Miss Streak 5 | . 4 4 5 1 1 Penetration Max . | . . . . . . Secondary Targets 2 | . 2 . . . . Max Gunslinging Chain 1 | . 1 . . . . Shots Hit Robots 299 | . 53 148 70 18 10 Core Hits 126 | . 29 63 26 5 3 Critical Kills . | . . . . . . Critical Parts Destroyed 1 | . . 1 . . . Critical Strikes 4 | . . 1 3 . . Burn 3 | . . . 3 . . Destroy 1 | . . 1 . . . Melee Attacks . | . . . . . . Impact . | . . . . . . Slashing . | . . . . . . Piercing . | . . . . . . Sneak Attacks . | . . . . . . Combat Hostiles . | . . . . . . Follow-up Attacks . | . . . . . . Damage Inflicted 5341 | . 707 2492 1472 423 247 Guns 2179 | . 636 992 551 . . Cannons 3103 | . 71 1500 917 423 192 Explosions . | . . . . . . Melee . | . . . . . . Ramming 59 | . . . 4 . 55 Kinetic 1252 | . 362 890 . . . Thermal 4030 | . 345 1602 1468 423 192 Explosive . | . . . . . . Electromagnetic . | . . . . . . Impact . | . . . . . . Slashing . | . . . . . . Piercing . | . . . . . . Highest Corruption 26 | . . . . . 26 Average Corruption 13 | . . . . . 13 Corruption Purged . | . . . . . . Corruption Blocked . | . . . . . . Effects 10 | . . . . . 10 Message Errors 1 | . . . . . 1 Matter Fused 3 | . . . . . 3 Energy Discharges 2 | . . . . . 2 Parts Fused 1 | . . . . . 1 Data Loss (minor) 1 | . . . . . 1 Misdirections 2 | . . . . . 2 Overload Shots . | . . . . . . Overflow Damage 57 | . . . 19 38 . Projectiles 57 | . . . 19 38 . Explosions . | . . . . . . Melee . | . . . . . . Knockbacks . | . . . . . . Impact . | . . . . . . Kinetic . | . . . . . . Secondary . | . . . . . . Self-Inflicted Damage 23 | . . . . . 23 Shots . | . . . . . . Rammed 22 | . . . 2 . 20 Targets Rammed 22 | . . . 2 . 20 Kicked . | . . . . . . Crushed . | . . . . . . Highest Temperature 367 | . 105 289 367 106 40 Average Temperature 85 | . 43 79 125 39 17 Received Heat Transfer 1146 | . 189 624 297 36 . Effects 1 | . . . 1 . . Short Circuit 1 | . . . 1 . . Siege Activations . | . . . . . . Martial Activations . | . . . . . . Shielding Activations . | . . . . . . Robots Disrupted . | . . . . . . Combat Hostiles . | . . . . . . Robots Corrupted . | . . . . . . Combat Hostiles . | . . . . . . Parts Fried . | . . . . . . Impact Corruptions . | . . . . . . Robots Melted 1 | . . . 1 . . Combat Hostiles 1 | . . . 1 . . Parts Melted 18 | . 1 5 12 . . Heat Transferred 7803 | . 773 3330 2923 518 259 Parts Sabotaged . | . . . . . . Parts Stolen . | . . . . . . Parts Stripped . | . . . . . . Power Chain Reactions . | . . . . . . Alert | -11 -10 -9 -8 -7 -7 ------- Run | Yrd Mat Mat Mat Fac Was Maximum Alert Level 1 | . . 1 1 . . Low Security (%) 74 | 100 100 54 76 100 100 Level 1 25 | . . 45 23 . . Level 2 . | . . . . . . Level 3 . | . . . . . . Level 4 . | . . . . . . Level 5 . | . . . . . . High Security . | . . . . . . Max Security . | . . . . . . Peak Influence 349 | . 125 349 275 98 . Initial 131 | . . . 131 98 . Average 111 | . 46 191 87 17 . Influence Increases 2007 | . 345 1001 576 85 . Destroy 0b10 Robot/C 1340 | . 240 700 340 60 . Destroy 0b10 Robot/NC 80 | . 25 45 5 5 . Destroy Leader 374 | . 54 178 122 20 . Successful Hack 53 | . 10 33 10 . . Disable Machine 45 | . . 45 . . . Destroy Structure 10 | . 1 . 9 . . Lose Combat Pursuer 105 | . 15 . 90 . . Influence Decreases 2007 | . 345 690 671 301 . Entered New Map 298 | . . . 180 118 . Time Decay 1569 | . 325 600 461 183 . Lost Part 130 | . 20 90 20 . . Lost Ally 10 | . . . 10 . . Squads Dispatched 7 | . 1 2 2 2 . Investigation 2 | . 1 . 1 . . Extermination 1 | . . . . 1 . Reinforcement 4 | . . 2 1 1 . Assault . | . . . . . . Garrison . | . . . . . . Intercept . | . . . . . . Searches Triggered . | . . . . . . Construction Impeded . | . . . . . . Haulers Reinforced . | . . . . . . Active Scanning Responses . | . . . . . . Cargo Convoy Interrupts . | . . . . . . Stealth | -11 -10 -9 -8 -7 -7 --------- Run | Yrd Mat Mat Mat Fac Was Distress Signals 13 | . 4 7 2 . . Communications Jammed . | . . . . . . Distress Signals . | . . . . . . Times Spotted 134 | . 28 67 27 5 7 Peak Tracking Total 6 | . 6 6 6 2 6 Tactical Retreats 6 | . 1 . 3 . 2 Traps | -11 -10 -9 -8 -7 -7 ------- Run | Yrd Mat Mat Mat Fac Was Traps Triggered 3 | . 1 . 1 1 . Indirectly . | . . . . . . Trap Hack Attempts . | . . . . . . Triggered . | . . . . . . Disarmed . | . . . . . . Reprogrammed . | . . . . . . Reused . | . . . . . . Traps Extracted . | . . . . . . Installed . | . . . . . . Triggered . | . . . . . . Machines | -11 -10 -9 -8 -7 -7 ---------- Run | Yrd Mat Mat Mat Fac Was Machines Disabled 3 | . . 3 . . . Max in Single Turn 1 | . . 1 . . . Machines Repaired . | . . . . . . Machines Dismantled . | . . . . . . Machines Sabotaged . | . . . . . . Overloaded Fab Kills . | . . . . . . Hacking | -11 -10 -9 -8 -7 -7 --------- Run | Yrd Mat Mat Mat Fac Was Machines Accessed 27 | . 7 8 10 2 . Terminals 25 | . 7 8 9 1 . Fabricators 1 | . . . . 1 . Repair Stations . | . . . . . . Recycling Units . | . . . . . . Scanalyzers 1 | . . . 1 . . Garrison Access . | . . . . . . Total Hacks 82 | . 19 24 34 5 . Successful 55 | . 8 19 23 5 . Failed 27 | . 11 5 11 . . Catastrophic 1 | . 1 . . . . Database Lockouts . | . . . . . . Manual 79 | . 16 28 32 3 . Terminals 77 | . 19 24 32 2 . Fabricators 3 | . . . . 3 . Repair Stations . | . . . . . . Recycling Units . | . . . . . . Scanalyzers 2 | . . . 2 . . Garrison Access . | . . . . . . Terminal Hacks 10 | . 4 3 3 . . Robot Analysis 6 | . 2 2 2 . . Prototype ID Bank 1 | . 1 . . . . Terminal Index 2 | . . 1 1 . . Zone Layout 1 | . 1 . . . . Fabricator Hacks 2 | . . . . 2 . Network Status 1 | . . . . 1 . Build 1 | . . . . 1 . Repair Station Hacks . | . . . . . . Recycling Unit Hacks . | . . . . . . Scanalyzer 2 | . . . 2 . . Insert Component 1 | . . . 1 . . Analyze 1 | . . . 1 . . Garrison Access Hacks . | . . . . . . Unauthorized Hacks 41 | . 4 16 18 3 . Terminals 40 | . 4 16 18 2 . Track 2 | . . 1 1 . . Assimilate 2 | . . 2 . . . Botnet 20 | . 3 7 9 1 . Operators 3 | . . 1 2 . . Skim 13 | . 1 5 6 1 . Fabricators 1 | . . . . 1 . Liberate 1 | . . . . 1 . Repair Stations . | . . . . . . Recycling Units . | . . . . . . Scanalyzers . | . . . . . . Garrison Access . | . . . . . . Data Cores Recovered 1 | . 1 . . . . Used . | . . . . . . Hacking Detections 22 | . 5 6 9 2 . Full Trace Events 1 | . . . 1 . . Feedback Events . | . . . . . . Feedback Blocked . | . . . . . . Robot Schematics Acquired . | . . . . . . Robots Built 3 | . . . . 3 . Authchips . | . . . . . . Time 99 | . . . . 99 . Total Robot Build Rating 6 | . . . . 6 . Part Schematics Acquired 1 | . . . 1 . . Parts Built . | . . . . . . Authchips . | . . . . . . Time . | . . . . . . Total Part Build Rating . | . . . . . . Part Studies Acquired . | . . . . . . Parts Repaired . | . . . . . . Time . | . . . . . . Parts Recycled . | . . . . . . Recycled Matter . | . . . . . . Retrieved Matter . | . . . . . . Retrieved Components . | . . . . . . Parts Scanalyzed 1 | . . . 1 . . Part Schematics Acquired 1 | . . . 1 . . Parts Damaged . | . . . . . . Bothacking | -11 -10 -9 -8 -7 -7 ------------ Run | Yrd Mat Mat Mat Fac Was Used RIF Installer . | . . . . . . Robots Hacked 6 | . . . . 2 4 Non-combat 1 | . . . . 1 . Combat 5 | . . . . 1 4 Robot Hacks Applied 8 | . . . . 4 4 parse_system 6 | . . . . 2 4 no_distress 1 | . . . . 1 . find_recycling 1 | . . . . 1 . Relay Couplers Released . | . . . . . . Fabnet Peak Effective % . | . . . . . . Robots Rewired . | . . . . . . Allies Hacked . | . . . . . . Hacks Repelled . | . . . . . . Allies | -11 -10 -9 -8 -7 -7 -------- Run | Yrd Mat Mat Mat Fac Was Total Allies 6 | . . 1 . 3 2 Largest Group 4 | . . 1 1 3 4 Highest-Rated Group 61 | . . 10 10 30 61 Highest-Rated Ally 31 | . . 10 10 10 31 Total Orders . | . . . . . . Ally Attacks 19 | . . . . . 19 Total Damage 320 | . . . . . 320 Kills . | . . . . . . Allies Corrupted . | . . . . . . Allies Melted . | . . . . . . Intel | -11 -10 -9 -8 -7 -7 ------- Run | Yrd Mat Mat Mat Fac Was Active Infowar (turns) 3818 | . 904 2817 97 . . Structural 3818 | . 904 2817 97 . . Robot Analysis Total 6 | . 2 2 2 . . Derelict Logs Recovered . | . . . . . . Drone Launches . | . . . . . . Drone Recoveries . | . . . . . . Exploration | -11 -10 -9 -8 -7 -7 ------------- Run | Yrd Mat Mat Mat Fac Was Turns Passed 6729 | 66 1061 2828 1694 816 264 Spaces Moved 3103 | 48 601 1079 830 359 186 Core 150 | 8 1 . . . 141 Treads 2552 | . 239 1079 830 359 45 Legs 401 | 40 361 . . . . Wheels . | . . . . . . Hover . | . . . . . . Flight . | . . . . . . Fastest Speed 50 | 50 120 160 155 155 50 Average Speed 170 | 108 138 198 171 184 100 Slowest Speed 350 | 120 350 240 232 240 320 Overloaded Moves . | . . . . . . Propulsion Burnouts . | . . . . . . Robots Hopped . | . . . . . . Potential Cave-ins . | . . . . . . Cave-ins Triggered . | . . . . . . Exploration Rate (%) 56 | 4 96 86 68 9 78 Regions Visited 5 Branch Regions . Pre-discovered Areas . | . . . . . . Known Exits Taken 2 | . . 1 1 . . Unknown Exits Taken 2 | 1 1 . . . . Scrap Searched . | . . . . . . Spaces Dug 3 | . . . 3 . . Terrain Destroyed 7 | . . . 7 . . Melee . | . . . . . . Projectile 7 | . . . 7 . . AOE . | . . . . . . Terrain Rammed . | . . . . . . Walls Destroyed . | . . . . . . Machines Disabled . | . . . . . . Actions | -11 -10 -9 -8 -7 -7 --------- Run | Yrd Mat Mat Mat Fac Was Total 4104 | 62 738 1550 1008 495 251 Wait 570 | . 54 321 75 98 22 Move 3099 | 47 600 1078 829 359 186 Hop . | . . . . . . Pick Up 68 | 9 18 19 16 6 . Fast Attach 7 | . 1 . 3 1 2 Attach 36 | 6 5 11 4 3 7 Detach 1 | . . . 1 . . Swap 24 | . 5 4 11 4 . Drop 33 | . 8 4 16 4 1 Fire 244 | . 47 113 51 20 13 Melee . | . . . . . . Ram 20 | . . . . . 20 Kick . | . . . . . . Crush 2 | . . . 2 . . Escape Stasis . | . . . . . . Rewire . | . . . . . . Trap . | . . . . . . Miscellaneous . | . . . . . . Route ------- -11/Scrapyard -10/Materials (discovered 5 exits: *Mat x3 / [*Min x2]) -9/Materials (discovered 5 exits: *Mat x3 / *Min x2) -8/Materials (discovered 4 exits: *Fac x3 / Sto) -7/Factory (discovered 6 exits: Fac x4 / *Low x2) -7/Waste (discovered 1 exit: [*Fac]) History --------- Turn | Location | Event 5 | -11/Scrapyard | Discovered new exit (range 14) 67 | -11/Scrapyard | Entered Materials 302 | -10/Materials | Build established: Mutant 355 | -10/Materials | Discovered new exit (range 16) 437 | -10/Materials | Core integrity fell below 50% 534 | -10/Materials | Discovered new exit (range 12) 594 | -10/Materials | Discovered new exit (range 9) 613 | -10/Materials | Discovered new exit (range 14) 932 | -10/Materials | Discovered new exit (range 3) 1128 | -10/Materials | Entered another Materials area 1128 | -9/Materials | Evolved 2 slots: Utility x2 1198 | -9/Materials | Discovered new exit (range 15) 1505 | -9/Materials | Discovered new exit (range 3) 1742 | -9/Materials | Discovered new exit (range 8) 2233 | -9/Materials | Discovered new exit (range 15) 2867 | -9/Materials | Core integrity fell below 50% 3484 | -9/Materials | Discovered new exit (range 8) 3637 | -9/Materials | Learned location of 3 exits from Materials 3669 | -9/Materials | Identified exit to Materials 3669 | -9/Materials | Identified exit to Mines 3716 | -9/Materials | Learned location of 2 exits from Materials 3735 | -9/Materials | Learned Storage emergency access door positions 3765 | -9/Materials | Learned location of 1 exit from Storage 3781 | -9/Materials | Build established: Scavenger-Mutant 3956 | -9/Materials | Entered another Materials area 3956 | -8/Materials | Accompanied by 1 ally 3956 | -8/Materials | Evolved 2 slots: Propulsion x1, Utility x1 3957 | -8/Materials | Identified exit to Factory 3957 | -8/Materials | Identified exit to Storage 4613 | -8/Materials | Build established: Hacker-Mutant 5116 | -8/Materials | Learned Factory recycling unit intel 5259 | -8/Materials | Learned 4 Lower Caves zone layouts 5315 | -8/Materials | Learned location of 2 exits from Factory 5398 | -8/Materials | Learned location of 2 exits from Factory 5423 | -8/Materials | Learned 4 Recycling zone layouts 5457 | -8/Materials | Learned 4 Recycling zone layouts 5549 | -8/Materials | Learned Factory stockpile data 5650 | -8/Materials | Entered Factory 5650 | -7/Factory | Evolved 2 slots: Utility x2 5651 | -7/Factory | Identified exit to Factory 5652 | -7/Factory | Identified exit to Lower Caves 5654 | -7/Factory | Loaded intel: 6 recycling unit locations 6396 | -7/Factory | Fabricated B-36 Bruiser (x3) 6466 | -7/Factory | Sucked down chute 6466 | -7/Factory | Entered Waste 6466 | -7/Waste | Met up with 1 ally sucked down the chute earlier 6467 | -7/Waste | Met a frightened Derelict 6481 | -7/Waste | EMP discharged 6486 | -7/Waste | 2 allies followed down the chute 6497 | -7/Waste | Spotted C-40 Crusher 6569 | -7/Waste | Spotted C-40 Crusher 6569 | -7/Waste | Spotted C-40 Crusher 6579 | -7/Waste | Spotted C-40 Crusher 6581 | -7/Waste | EMP discharged 6581 | -7/Waste | System corruption reached 10% 6588 | -7/Waste | Crushed by Compactor (1 part destroyed, 1 dropped) 6593 | -7/Waste | Crushed by Compactor (1 part destroyed, 2 dropped) 6596 | -7/Waste | Crushed by Compactor (1 part destroyed, 1 dropped) 6599 | -7/Waste | Crushed by Compactor (1 part destroyed, 1 dropped) 6602 | -7/Waste | Crushed by Compactor (1 part destroyed, 1 dropped) 6608 | -7/Waste | Lost 3 allies 6618 | -7/Waste | Crushed by Compactor (1 part destroyed, 1 dropped) 6623 | -7/Waste | Spotted C-40 Crusher 6633 | -7/Waste | Discovered new exit (range 16) 6633 | -7/Waste | Spotted C-40 Crusher 6649 | -7/Waste | Lost 7 parts (5n1u1w) 6681 | -7/Waste | EMP discharged 6705 | -7/Waste | Crushed by Compactor (1 part destroyed, 1 dropped) 6706 | -7/Waste | Crushed by Compactor (1 part destroyed, 1 dropped) 6709 | -7/Waste | Crushed by Compactor (1 part destroyed) 6710 | -7/Waste | Core integrity fell below 50% 6725 | -7/Waste | Core integrity fell below 20% 6727 | -7/Waste | Crushed by Compactor (1 part destroyed) 6730 | -7/Waste | Destroyed by C-40 Crusher with Compactor Last Messages --------------- 06653_ System corrupted: Energy discharge (-34). 06669_ QJ,PMR>UAY&W3X8 PCPIFD::C 06671_ ALERT: Foreign system detected. Charging EMP. 06681_ System corrupted (+8). 06684_ System corrupted: Matter fused (-9). 06705_ System Shield crushed. 06705_ Hacking Suite crushed. 06706_ System corrupted: Component data lost. 06706_ Hacking Suite crushed. 06706_ Adv. Targeting Computer crushed. 06706_ Slammed into C-40 Crusher. 06709_ Hacking Suite crushed. 06709_ Slammed into C-40 Crusher. 06719_ Destabilizing: System corrupted (+2). 06720_ Slammed into C-40 Crusher. 06726_ System corrupted: Energy discharge (-24). 06726_ Dropped Imp. Treads. 06727_ Corruption Screen crushed. 06728_ Slammed into C-40 Crusher. Map ----- +----------------------------------------------------+ | ?????????????????????????????????????????????????? | | ?????????????????????????????????????????????????? | | ?????????????????????????????????????????????????? | | ?????????????????????????????????????????????????? | | ?????????????????????????????????????????????????? | | ?????????????????????????????????????????????????? | | ?????????????????????????????????????????????????? | | ?????????????????????????????????????????????????? | | ?????????????????????????????????????????????????? | | ?????????????????????????????????????????????????? | | ?????????????????????????????????????????????????? | | ?????????????????????????????????????????????????? | | ?????????????????????????????????????????????????? | | ?????????????????????????????????????????????????? | | ?????????????????????????????????????????????????? | | ?????????????????????????????????????????????????? | | ?????????????????????????????????????????????????? | | ?????????????????????????????????????????????????? | | ?????????????????##########??????????????????????? | | ??????? ?????# #??????????????????????? | | ??????? #??# CC #??????????????????????? | | ??????? #??# CC #??????????????????????? | | ??????? #??# CC #??????????????????????? | | ??????? #??# CCCC#??????????????????????? | | ??????? #??# CC#??????????????????????? | | ??????? ???# CC@#??????????????????????? | | #?????? ????# CC=#??????????????????????? | | #??????# #????### CC###??????????????????????? | | #??????# #??????# CC#????????????????????????? | | #??????# #??????# #????????????????????????? | | #??????# #??????# #????????????????????????? | | ######## #??????# ###??????????????????????? | | #??????# #??????????????????????? | | #??????# #??????????????????????? | | #??????# #??????????????????????? | | #??????# #??????????????????????? | | ######## #??????# ###??????????????????????? | | #??????# #??????# #??############??????????? | | #??????# #??????# #??# #??????????? | | #??????# #??????# #??# #??????????? | | ######## ######## #### #??????????? | | #??????????? | | #??????????? | | < #??????????? | | #??????????? | | ######## ######## #### #??????????? | | #??????# #??????# #??# #??????????? | | #??????# #??????# #??# #??????????? | | ???????# #??????# " #??############??????????? | | ???????# #??????# #????????????????????????? | +----------------------------------------------------+ Best States ------------- Heat Dissipation 34 Energy Generation 15 Energy Capacity 240 Matter Stores 300 Matter Capacity 300 Sight Range 16 Terrain Scan Density 10 Additional Mass Support 6 Evasion (%) 55 Targeting Accuracy 14 Recoil Reduction 3 Offensive Hacking 30 Defensive Hacking 10 Item Schematics ----------------- Gauss Rifle | -8/Materials | Scanalyzed Robot Schematics ------------------ None Fabricated ------------ B-36 Bruiser | x3 | -7/Factory | Preloaded Repaired ---------- Nothing Studied --------- None Alien Tech Used ----------------- None Achievements -------------- Fist Fight Heavy Suspicion Junior Dev Challenges ------------ None Game ------ Seed TerrabombCouplerCannon Manual? 0 Play Time 00:54:41 Cumulative 146.4 hours Start 2026.01.18 @ 14:52:09 End 2026.01.18 @ 15:51:06 Sessions 1 Manual Loads 0 Difficulty Rogue Special Mode None Game No. 79 Rogue 66 Adventurer 13 Explorer 0 Win Type - Total 1 Types 1/0/0/0/0/0/0/0/0/0 Lore% 40 Gallery% 38 Achievement% 24 Wizard Run 0 Options --------- Layout 1 ASCII 0 Keyboard 0 Movement Mouse Keybinds 0 Fullscreen 1 Font 24/Smallcaps Map View 50x35 Zoom Use 0% Tactical HUD 1 Map Filters NONE Filters NONE Steam 0 RUN: 70c57103-1ed8-4737-a07d-6f891fe0a8ff